[Event "Austrian Championship 2022"]
[Site "Vienna"]
[Date "2022.08.17"]
[Round "7.2"]
[White "Blohberger, Felix"]
[Black "Morgunov, Marc"]
[Result "1/2-1/2"]
[ECO "E62"]
[WhiteElo "2492"]
[BlackElo "2376"]
[Annotator "TA"]
[PlyCount "77"]
[EventDate "2022.08.12"]
[EventType "swiss"]
[EventCountry "AUT"]
[SourceTitle "playchess.com"]
[Source "ChessBase"]
[SourceQuality "1"]
[TimeControl "40/5400+30:1800+30"]

{[%evp 16,77,25,22,48,36,36,42,70,53,58,65,61,66,65,42,66,49,104,79,153,82,301,312,311,308,322,193,185,106,97,110,105,99,102,68,60,61,46,54,44,24,22,0,0,0,0,0,0,0,0,0,0,-10,-6,-8,0,0,0,0,0,-4,0,0]} 1. d4 {[%emt 0:00:31]} Nf6 {[%emt 0:00:31]} 2. c4 {[%emt 0:00:08]} g6 {[%emt 0:00:04]} 3. g3 {[%emt 0:00:14]} Bg7 {[%emt 0:00:04]} 4. Bg2 {[%emt 0:00:07]} O-O {[%emt 0:00:54]} 5. Nc3 {[%emt 0:00:09]} d6 {[%emt 0:00:22]} 6. Nf3 {[%emt 0:00:09]} Nc6 {[%emt 0:00:54]} 7. d5 {[%emt 0:00:07]} Na5 {[%emt 0:00:15]} 8. b3 $1 {[%emt 0:00:09][%mdl 4] now scores much better than the old 8.Nd2.} c6 {[%emt 0:15:01]} 9. Bb2 {[%emt 0:00:12]} cxd5 {[%emt 0:00:57] E62: King's Indian: Fianchetto: 6...c6 and Panno Variation (6...Nc6) without ...a6.} 10. cxd5 {[%emt 0:00:08]} Bd7 {[%emt 0:12:07]} 11. Nd4 {[%emt 0:00:07]} Rc8 {[%emt 0:00:23] White is slightly better.} 12. O-O {[%emt 0:00:53]} Qb6 {[%emt 0:01:31]} 13. Qd2 {[%emt 0:08:15] [#]} e5 $146 {[%emt 0:05:44]} ({Predecessor:} 13... Rc7 14. e3 Rfc8 15. Rfc1 Qb4 16. Rc2 a6 17. Rd1 Ng4 18. Nce2 Qxd2 19. Rcxd2 Nf6 {½-½ (26) Dizdar,G (2505)-Sokolov,I (2425) Sarajevo 1987}) 14. dxe6 {[%emt 0:03:02]} fxe6 {[%emt 0:00:15]} 15. e4 {[%emt 0:11:48]} Ng4 {[%emt 0:07:30]} 16. Rad1 {[%emt 0:12:47]} Bh6 {[%emt 0:12:34]} (16... Ne5 $14 17. Ba1 Nf7) 17. Qe2 {[%emt 0:11:07]} Ne5 {[%emt 0:03:04]} (17... Bg7 $142) 18. Kh1 {[%emt 0:03:49]} (18. Bh3 $142) 18... a6 $2 {[%emt 0:05:05] [#]} (18... Nac6 $2 19. Ndb5 $16) (18... Bg7 $16) 19. f4 $18 {[%emt 0:01:02]} Nec6 {[%emt 0:01:24]} 20. Nxc6 {[%emt 0:11:03]} Rxc6 {[%emt 0:00:39]} 21. Qd2 {[%emt 0:03:14]} (21. f5 $142 {Black must now prevent fxg6.} e5 22. Nd5) 21... Qb4 {[%emt 0:04:54]} 22. Ne2 {[%emt 0:06:04]} ({White should play} 22. Rf3 $18) 22... Qxd2 $16 {[%emt 0:00:43]} 23. Rxd2 {[%emt 0:00:03]} e5 {[%emt 0:06:57]} 24. Ba3 {[%emt 0:04:40]} ({But not} 24. Bxe5 $6 dxe5 25. Rxd7 Rc2 $14) 24... Bg4 {[%emt 0:01:35]} 25. Bb4 {[%emt 0:03:23]} b6 {[%emt 0:00:29]} 26. h3 $1 {[%emt 0:01:18]} Bxe2 {[%emt 0:00:13]} 27. Rxe2 {[%emt 0:00:02]} Nb7 {[%emt 0:00:57]} 28. Rd1 {[%emt 0:02:43] Threatens to win with fxe5.} Rfc8 {[%emt 0:02:55]} (28... exf4 $2 29. gxf4 Rd8 30. e5 dxe5 31. Rxd8+ (31. Bxc6 Rxd1+ 32. Re1 Rxe1+ 33. Bxe1 Nc5 $11) 31... Nxd8 32. Bd5+ (32. fxe5 Rc1+ 33. Re1 Rxe1+ 34. Bxe1 Kf8 $16) 32... Kg7 33. fxe5 $18) 29. fxe5 {[%emt 0:03:02] The position is equal.} dxe5 {[%emt 0:01:04]} 30. Rd5 {[%emt 0:01:49]} Rc1+ {[%emt 0:02:48]} 31. Kh2 {[%emt 0:00:09]} a5 {[%emt 0:00:11]} 32. Be7 {[%emt 0:06:13]} R1c2 {[%emt 0:02:02]} 33. Rxc2 {[%emt 0:00:26]} Rxc2 {[%emt 0:00:04]} 34. Rxe5 {[%emt 0:02:31]} Kf7 {[%emt 0:04:07]} 35. Bh4 {[%emt 0:02:16]} Nc5 {[%emt 0:00:07] ...Ne6 is the strong threat.} 36. Re7+ {[%emt 0:00:19]} Kg8 {[%emt 0:01:37]} 37. Re8+ {[%emt 0:02:33]} Kf7 {[%emt 0:00:03]} 38. Re7+ {[%emt 0:00:11]} Kg8 {[%emt 0:00:14] [#] Hoping for ...g5.} 39. Re8+ {[%emt 0:00:56] Black defended with fortune.  Weighted Error Value: White=0.15 (very precise) /Black=0.17 (very precise)} 1/2-1/2

[Event "Austrian Championship 2022"]
[Site "Vienna"]
[Date "2022.08.17"]
[Round "7.2"]
[White "Mayrhuber, Tobias"]
[Black "Ernst, Robert"]
[Result "1-0"]
[ECO "B22"]
[WhiteElo "2010"]
[BlackElo "2001"]
[Annotator "NA RC"]
[PlyCount "22"]
[EventDate "2022.08.12"]
[EventType "swiss"]
[EventCountry "AUT"]
[SourceTitle "playchess.com"]
[Source "ChessBase"]
[SourceQuality "1"]
[TimeControl "40/5400+30:1800+30"]

1. e4 {[%emt 0:00:04]} c5 {[%emt 0:00:08]} 2. c3 {[%emt 0:00:08]} Nf6 {[%emt 0:00:15]} 3. e5 {[%emt 0:00:06]} Nd5 {[%emt 0:00:10]} 4. Nf3 {[%emt 0:00:08]} Nc6 {[%emt 0:00:27]} 5. Bc4 {[%emt 0:00:32]} Nb6 {[%emt 0:01:31]} 6. Bb3 {[%emt 0:00:07]} d5 {[%emt 0:00:21]} 7. exd6 {[%emt 0:00:38]} Qxd6 {[%emt 0:00:25]} 8. O-O {[%emt 0:01:06]} Be6 {[%emt 0:10:21]} 9. Na3 {[%emt 0:06:00]} a6 {[%emt 0:01:30]} 10. Qe2 {[%emt 0:02:44]} Bxb3 {[%emt 0:02:22]} 11. axb3 {[%emt 0:00:05]} Rd8 {[%emt 0:03:20]} 1-0

[Event "Austrian Championship 2022"]
[Site "Vienna"]
[Date "2022.08.17"]
[Round "7.3"]
[White "Leisch, Lukas"]
[Black "Stanec, Nikolaus"]
[Result "1/2-1/2"]
[ECO "E68"]
[WhiteElo "2404"]
[BlackElo "2460"]
[Annotator "TA"]
[PlyCount "35"]
[EventDate "2022.08.12"]
[EventType "swiss"]
[EventCountry "AUT"]
[SourceTitle "playchess.com"]
[Source "ChessBase"]
[SourceQuality "1"]
[TimeControl "40/5400+30:1800+30"]

{[%evp 24,35,45,30,51,56,53,50,47,35,62,61,58,4]} 1. d4 {[%emt 0:03:29]} Nf6 {[%emt 0:00:14]} 2. c4 {[%emt 0:00:32]} d6 {[%emt 0:01:07]} 3. Nf3 {[%emt 0:00:22]} Nbd7 {[%emt 0:00:32]} 4. Nc3 {[%emt 0:00:12]} e5 {[%emt 0:00:05]} 5. e4 {[%emt 0:00:08]} exd4 {[%emt 0:01:15]} 6. Nxd4 {[%emt 0:00:14]} g6 {[%emt 0:00:06]} 7. g3 {[%emt 0:00:32]} Bg7 {[%emt 0:00:10]} 8. Bg2 {[%emt 0:00:06]} O-O {[%emt 0:00:09]} 9. O-O {[%emt 0:00:05]} Re8 {[%emt 0:00:55]} 10. h3 {[%emt 0:04:11]} a6 {[%emt 0:00:14]} 11. Re1 {[%emt 0:00:18]} Rb8 {[%emt 0:00:08]} 12. Rb1 {[%emt 0:00:39]} Ne5 {[%emt 0:05:59]} 13. b3 $1 {[%emt 0:00:29]} Bd7 {[%emt 0:04:27] E68: King's Indian: Fianchetto: 6...Nbd7 7 0-0 e5 8 e4.} 14. Bb2 {[%emt 0:11:05] White is slightly better.} Nc6 {[%emt 0:02:18]} 15. Nxc6 {[%emt 0:14:01]} Bxc6 {[%emt 0:01:08]} 16. Nd5 {[%emt 0:00:16] [#]} h5 $146 {[%emt 0:20:22]} ({Predecessor:} 16... Bd7 17. Qd4 Re6 18. Qd2 b5 19. Nf4 Re8 20. cxb5 axb5 21. Rbd1 g5 22. Nd3 h6 {1-0 (32) Bagaturov,G (2399)-Gucin,Z (2053) Konya 2015}) 17. Qd4 {[%emt 0:08:16][%cal Rd5f6] 0x0.00144ea8a760dp-1022s more active pieces.} Bxd5 {[%emt 0:05:12]} 18. exd5 {[%emt 0:07:18] White got outplayed after the opening.  Weighted Error Value: White=0.02 (flawless) /Black=0.10 (very precise)} ({White should try} 18. cxd5 $14 h4 19. g4 (19. gxh4 Nh5 $15)) 1/2-1/2

[Event "Austrian Championship 2022"]
[Site "Vienna"]
[Date "2022.08.17"]
[Round "7.3"]
[White "Kersten, Julian"]
[Black "Dotzer, Lukas"]
[Result "0-1"]
[ECO "D00"]
[WhiteElo "1999"]
[BlackElo "2269"]
[Annotator "NA RC"]
[PlyCount "66"]
[EventDate "2022.08.12"]
[EventType "swiss"]
[EventCountry "AUT"]
[SourceTitle "playchess.com"]
[Source "ChessBase"]
[SourceQuality "1"]
[TimeControl "40/5400+30:1800+30"]

1. d4 {[%emt 0:10:25]} Nf6 {[%emt 0:00:06]} 2. Bg5 {[%emt 0:00:07]} d5 {[%emt 0:00:04]} 3. Bxf6 {[%emt 0:00:07]} exf6 {[%emt 0:00:07]} 4. e3 {[%emt 0:00:24]} Bd6 {[%emt 0:00:33]} 5. Bd3 {[%emt 0:00:22]} c6 {[%emt 0:01:04]} 6. Nd2 {[%emt 0:01:24]} Qb6 {[%emt 0:07:21]} 7. b3 {[%emt 0:05:04]} O-O {[%emt 0:07:48]} 8. Ne2 Qc7 {[%emt 0:10:21]} 9. h3 {[%emt 0:08:58]} f5 {[%emt 0:04:30]} 10. O-O {[%emt 0:00:36]} g6 {[%emt 0:05:59]} 11. c4 {[%emt 0:04:16]} Be6 {[%emt 0:05:14]} 12. cxd5 {[%emt 0:05:40]} cxd5 {[%emt 0:00:20]} 13. Rc1 {[%emt 0:06:45]} Qa5 {[%emt 0:02:16]} 14. Bb1 {[%emt 0:20:59]} Na6 {[%emt 0:09:06]} 15. Nf3 {[%emt 0:01:19]} Ba3 {[%emt 0:04:46]} 16. Rc2 {[%emt 0:02:40]} Bd7 {[%emt 0:05:52]} 17. Rd2 {[%emt 0:04:11]} Nb4 {[%emt 0:02:24]} 18. Ne5 {[%emt 0:02:45]} Bb5 {[%emt 0:00:14]} 19. Nd3 {[%emt 0:03:59]} Rac8 {[%emt 0:07:16]} 20. Nc5 {[%emt 0:08:25]} Rc7 {[%emt 0:12:31]} 21. Bd3 {[%emt 0:05:23]} b6 {[%emt 0:02:17]} 22. Bxb5 {[%emt 0:00:46]} bxc5 {[%emt 0:00:09]} 23. Ba4 {[%emt 0:02:06]} c4 {[%emt 0:00:08]} 24. Nc3 {[%emt 0:01:05]} Rb8 {[%emt 0:08:12]} 25. Re2 {[%emt 0:02:59]} cxb3 {[%emt 0:00:58]} 26. Qxb3 {[%emt 0:00:20]} Rxc3 {[%emt 0:00:11]} 27. Qxc3 {[%emt 0:00:29]} Qxa4 {[%emt 0:00:06]} 28. Rb1 {[%emt 0:00:31]} Kg7 {[%emt 0:03:11]} 29. Rb3 {[%emt 0:00:32]} Nxa2 {[%emt 0:00:20]} 30. Rxa2 {[%emt 0:01:55]} Rxb3 {[%emt 0:00:11]} 31. Qa1 {[%emt 0:00:46]} Qb5 {[%emt 0:00:25]} 32. Kh2 {[%emt 0:00:18]} Bd6+ {[%emt 0:00:12]} 33. g3 {[%emt 0:00:29]} Rb1 {[%emt 0:00:09]} 0-1

[Event "Austrian Championship 2022"]
[Site "Vienna"]
[Date "2022.08.17"]
[Round "7.4"]
[White "Schernthaner, David"]
[Black "Horvath, Dominik"]
[Result "0-1"]
[ECO "E35"]
[WhiteElo "2319"]
[BlackElo "2488"]
[Annotator "RC"]
[PlyCount "86"]
[EventDate "2022.08.12"]
[EventType "swiss"]
[EventCountry "AUT"]
[SourceTitle "playchess.com"]
[Source "ChessBase"]
[SourceQuality "1"]
[TimeControl "40/5400+30:1800+30"]

1. d4 {[%emt 0:00:02]} d5 {[%emt 0:01:06]} 2. c4 {[%emt 0:00:02]} e6 {[%emt 0:00:03]} 3. Nc3 {[%emt 0:00:05]} Nf6 {[%emt 0:00:09]} 4. cxd5 {[%emt 0:00:07]} exd5 {[%emt 0:00:03]} 5. Bg5 {[%emt 0:00:08]} Bb4 {[%emt 0:00:04]} 6. Qc2 {[%emt 0:06:17]} h6 {[%emt 0:00:13]} 7. Bh4 {[%emt 0:00:04]} Nc6 {[%emt 0:00:18]} 8. e3 {[%emt 0:00:46]} g5 {[%emt 0:00:05]} 9. Bg3 {[%emt 0:00:03]} Ne4 {[%emt 0:00:03]} 10. f3 {[%emt 0:09:02]} Nxg3 {[%emt 0:03:49]} 11. hxg3 {[%emt 0:00:14]} Bd6 {[%emt 0:01:13]} 12. Qf2 {[%emt 0:09:55]} Ne7 {[%emt 0:09:30]} 13. Bd3 {[%emt 0:03:31]} c6 {[%emt 0:01:06]} 14. O-O-O {[%emt 0:05:45]} Qa5 {[%emt 0:06:48]} 15. Kb1 {[%emt 0:05:05]} b5 {[%emt 0:00:17]} 16. e4 {[%emt 0:10:08]} b4 {[%emt 0:00:38]} 17. Nce2 {[%emt 0:00:09]} b3 {[%emt 0:07:17]} 18. axb3 {[%emt 0:08:07]} Rb8 {[%emt 0:00:15]} 19. Nc1 {[%emt 0:00:25]} Be6 {[%emt 0:04:03]} 20. e5 {[%emt 0:02:58]} Bb4 {[%emt 0:00:07]} 21. f4 {[%emt 0:02:05]} Bg4 {[%emt 0:00:33]} 22. Nf3 {[%emt 0:00:40]} c5 {[%emt 0:01:10]} 23. dxc5 {[%emt 0:05:46]} Bxc5 {[%emt 0:00:49]} 24. Qd2 {[%emt 0:01:25]} Qxd2 {[%emt 0:06:34]} 25. Rxd2 {[%emt 0:00:05]} gxf4 {[%emt 0:00:02]} 26. gxf4 {[%emt 0:03:55]} Be3 {[%emt 0:00:04]} 27. Rc2 {[%emt 0:01:19]} Bxf4 {[%emt 0:00:04]} 28. Ne2 {[%emt 0:03:29]} Be3 {[%emt 0:00:19]} 29. Nc3 {[%emt 0:01:54]} Rxb3 {[%emt 0:01:59]} 30. Ka2 {[%emt 0:03:45]} Rb6 {[%emt 0:02:20]} 31. Nb5 {[%emt 0:03:28]} Nc6 {[%emt 0:04:06]} 32. Ka1 {[%emt 0:05:17]} O-O {[%emt 0:02:20]} 33. Re1 {[%emt 0:04:15]} d4 {[%emt 0:00:52]} 34. Rc5 {[%emt 0:00:57]} Nb4 {[%emt 0:00:26]} 35. Bb1 {[%emt 0:00:29]} Na6 {[%emt 0:03:01]} 36. Rd5 {[%emt 0:00:34]} Be6 {[%emt 0:00:18]} 37. Rd6 {[%emt 0:00:10]} Rxb5 {[%emt 0:00:39]} 38. Rxa6 {[%emt 0:00:04]} Rfb8 {[%emt 0:00:10]} 39. Ba2 {[%emt 0:01:37]} Rxb2 {[%emt 0:02:23]} 40. Bxe6 {[%emt 0:00:46]} fxe6 {[%emt 0:00:03]} 41. Rxe6 {[%emt 0:31:40]} Rxg2 {[%emt 0:30:04]} 42. Re7 {[%emt 0:01:58]} Rg3 {[%emt 0:00:35]} 43. Rf1 {[%emt 0:00:45]} Rf8 {[%emt 0:00:15]} 0-1

[Event "Austrian Championship 2022"]
[Site "Vienna"]
[Date "2022.08.17"]
[Round "7.4"]
[White "Wiedermann, Daniel"]
[Black "Fuchs, Patrick"]
[Result "1-0"]
[ECO "D26"]
[WhiteElo "2053"]
[BlackElo "1990"]
[Annotator "NA RC"]
[PlyCount "99"]
[EventDate "2022.08.12"]
[EventType "swiss"]
[EventCountry "AUT"]
[SourceTitle "playchess.com"]
[Source "ChessBase"]
[SourceQuality "1"]
[TimeControl "40/5400+30:1800+30"]

1. d4 {[%emt 0:00:01]} d5 2. c4 {[%emt 0:00:17]} dxc4 {[%emt 0:00:16]} 3. e3 {[%emt 0:04:18]} Nf6 {[%emt 0:00:11]} 4. Bxc4 {[%emt 0:00:12]} e6 {[%emt 0:00:10]} 5. Qe2 {[%emt 0:00:55]} c5 {[%emt 0:00:18]} 6. Nf3 {[%emt 0:01:55]} a6 {[%emt 0:00:12]} 7. dxc5 {[%emt 0:04:20]} Bxc5 {[%emt 0:00:28]} 8. O-O {[%emt 0:00:06]} b5 {[%emt 0:03:47]} 9. Bd3 {[%emt 0:00:49]} Nbd7 {[%emt 0:01:29]} 10. a4 {[%emt 0:00:50]} b4 {[%emt 0:00:47]} 11. Nbd2 {[%emt 0:12:06]} Bb7 {[%emt 0:01:17]} 12. e4 Bd6 {[%emt 0:28:43]} 13. Rd1 {[%emt 0:11:27]} Nc5 {[%emt 0:09:28]} 14. e5 {[%emt 0:15:36]} Bc7 {[%emt 0:14:24]} 15. exf6 {[%emt 0:02:15]} Qxd3 {[%emt 0:01:18]} 16. fxg7 {[%emt 0:06:06]} Rg8 {[%emt 0:23:17]} 17. Qxd3 {[%emt 0:10:29]} Nxd3 {[%emt 0:00:01]} 18. Nb3 {[%emt 0:00:43]} Bxf3 {[%emt 0:05:46]} 19. Rxd3 {[%emt 0:00:40]} Be4 {[%emt 0:00:03]} 20. Rd4 {[%emt 0:01:33]} Bd5 {[%emt 0:03:46]} 21. Rxb4 {[%emt 0:04:14]} Rxg7 {[%emt 0:00:17]} 22. g3 {[%emt 0:02:11]} Bd6 {[%emt 0:00:48]} 23. Rd4 {[%emt 0:03:04]} Be5 {[%emt 0:00:27]} 24. Rd3 {[%emt 0:05:17]} Rc8 {[%emt 0:00:01]} 25. Nd4 {[%emt 0:02:06]} Be4 {[%emt 0:02:16]} 26. Re3 {[%emt 0:01:06]} f5 {[%emt 0:01:43]} 27. Nxe6 {[%emt 0:01:22]} Rg6 {[%emt 0:00:56]} 28. Ng5 {[%emt 0:00:36]} Rxg5 {[%emt 0:00:45]} 29. Rxe4 {[%emt 0:00:05]} Rxc1+ {[%emt 0:00:03]} 30. Rxc1 {[%emt 0:00:03]} fxe4 {[%emt 0:00:12]} 31. h4 {[%emt 0:02:20]} Rg6 {[%emt 0:00:26]} 32. Re1 {[%emt 0:01:47]} Rg4 {[%emt 0:01:19]} 33. b4 {[%emt 0:01:37]} Bd4 {[%emt 0:00:46]} 34. Kg2 {[%emt 0:00:24]} Kf7 {[%emt 0:00:58]} 35. b5 {[%emt 0:04:15]} a5 {[%emt 0:00:02]} 36. Rd1 {[%emt 0:01:03]} e3 {[%emt 0:00:27]} 37. Kf3 {[%emt 0:00:21]} e2 {[%emt 0:00:21]} 38. Re1 {[%emt 0:01:54]} h5 {[%emt 0:01:19]} 39. Rxe2 {[%emt 0:00:19]} Bb6 {[%emt 0:00:33]} 40. Re5 {[%emt 0:01:04]} Rxa4 {[%emt 0:00:13]} 41. Rxh5 {[%emt 0:30:24]} Rb4 {[%emt 0:16:43]} 42. g4 {[%emt 0:00:00]} a4 {[%emt 0:01:21]} 43. g5 {[%emt 0:00:00]} a3 {[%emt 0:00:14]} 44. Rh7+ {[%emt 0:00:00]} Kg8 {[%emt 0:00:55]} 45. Rb7 {[%emt 0:00:00]} Ba5 {[%emt 0:08:02]} 46. Ra7 {[%emt 0:00:00]} Rxb5 {[%emt 0:01:20]} 47. Ra8+ {[%emt 0:00:00]} Kg7 {[%emt 0:00:17]} 48. Ra7+ {[%emt 0:00:00]} Kg6 {[%emt 0:00:54]} 49. Kg4 {[%emt 0:00:00]} Rb4+ {[%emt 0:00:17]} 50. f4 {[%emt 0:00:00]} 1-0

[Event "Austrian Championship 2022"]
[Site "Vienna"]
[Date "2022.08.17"]
[Round "7.5"]
[White "Schwabeneder, Florian"]
[Black "Kristoferitsch, Daniel"]
[Result "1/2-1/2"]
[ECO "A04"]
[WhiteElo "2430"]
[BlackElo "2312"]
[Annotator "TA"]
[PlyCount "81"]
[EventDate "2022.08.12"]
[EventType "swiss"]
[EventCountry "AUT"]
[SourceTitle "playchess.com"]
[Source "ChessBase"]
[SourceQuality "1"]
[TimeControl "40/5400+30:1800+30"]

{[%evp 17,81,0,0,0,0,8,0,0,0,-68,-36,-74,-68,-75,-55,-61,-36,-47,-18,-56,-58,-71,-47,-52,-44,-44,-18,-22,95,82,83,83,95,87,87,93,115,87,158,45,45,57,45,37,37,37,87,87,87,87,87,87,87,87,87,87,87,87,87,87,87,87,87,87,87,87]} 1. Nf3 {[%emt 0:04:21]} c5 {[%emt 0:00:28]} 2. g3 {[%emt 0:02:53]} Nc6 {[%emt 0:00:12]} 3. Bg2 {[%emt 0:00:28]} g6 {[%emt 0:00:06]} 4. O-O {[%emt 0:01:05]} Bg7 {[%emt 0:00:04]} 5. c3 {[%emt 0:00:53]} e5 {[%emt 0:00:07]} 6. e4 {[%emt 0:02:14]} Nge7 {[%emt 0:00:07]} 7. d3 {[%emt 0:00:15]} O-O {[%emt 0:00:55]} 8. a3 {[%emt 0:00:11]} d6 {[%emt 0:00:34]} 9. b4 {[%emt 0:01:08]} h6 {[%emt 0:00:07]} 10. b5 {[%emt 0:15:35] A04: Unusual lines after 1 Nf3 and King's Indian Attack.} Na5 {[%emt 0:00:12]} 11. c4 {[%emt 0:00:10]} f5 {[%emt 0:00:05]} 12. Nc3 {[%emt 0:00:17] The position is equal.} f4 {[%emt 0:05:02] [#]} 13. Nd5 $146 {[%emt 0:06:23]} (13. h3 $11) ({Predecessor:} 13. Rb1 g5 14. h3 Bd7 15. Nd2 b6 16. Nd5 Rf7 17. Re1 Qc8 18. g4 h5 19. Bf3 {½-½ (25) Teeriaho,T (2362)-Boos,M (2278) ICCF email 2014}) 13... g5 {[%emt 0:02:44]} 14. Ne1 {[%emt 0:08:43][%cal Bf3e1,Be1c2,Bc2a3,Ba3c4][%mdl 32]} Nxd5 {[%emt 0:24:43]} 15. cxd5 {[%emt 0:00:40]} Bd7 {[%emt 0:00:06]} 16. Rb1 {[%emt 0:03:25]} b6 {[%emt 0:04:19]} 17. Nc2 {[%emt 0:15:06]} Qe8 {[%emt 0:10:16]} 18. a4 {[%emt 0:00:28]} h5 {[%emt 0:00:06]} 19. f3 {[%emt 0:09:11]} Nb7 {[%emt 0:15:35]} 20. Na3 {[%emt 0:01:04]} Bf6 {[%emt 0:02:40]} 21. Nc4 {[%emt 0:03:16]} Bd8 {[%emt 0:00:08]} 22. Rf2 {[%emt 0:07:40]} a5 {[%emt 0:02:42]} (22... Rf7 $11) 23. gxf4 {[%emt 0:01:48]} gxf4 {[%emt 0:02:04]} 24. Qf1 $1 {[%emt 0:00:27]} Kh7 {[%emt 0:04:26]} 25. Bh3 {[%emt 0:00:57]} Rg8+ {[%emt 0:00:29]} 26. Kh1 {[%emt 0:00:25] Active counter play!} Bc7 {[%emt 0:00:52]} 27. Rbb2 {[%emt 0:02:49]} Nd8 {[%emt 0:01:55] [#]} (27... Qc8 $142 28. Bxd7 Qxd7) 28. Bxd7 {[%emt 0:03:01]} (28. Rg2 $1 $16 {[%cal Rg2g8] Rxg8 is the strong threat.} Rxg2 29. Bxd7 (29. Kxg2 Bxh3+ 30. Kxh3 Nf7 $11) (29. Bxg2 Nf7 $11) 29... Qxd7 30. Rxg2) 28... Qxd7 $14 {[%emt 0:00:07]} 29. Rg2 {[%emt 0:00:09] Strongly threatening Rxg8.} Nf7 {[%emt 0:00:18]} 30. Rxg8 {[%emt 0:01:07]} Rxg8 {[%emt 0:00:05]} 31. Rg2 {[%emt 0:00:08]} Rxg2 {[%emt 0:04:16]} (31... Ng5 $1 $14) 32. Qxg2 $16 {[%emt 0:00:09] White is better.} Bd8 {[%emt 0:00:11]} 33. Bd2 {[%emt 0:00:24][%cal Bc1d2,Bd2e1,Be1f2][%mdl 32]} Nh6 {[%emt 0:04:59]} 34. Be1 {[%emt 0:00:40]} Nf7 {[%emt 0:00:06]} 35. Kg1 {[%emt 0:01:25][%cal Bh1g1,Bg1f1,Bf1e2,Be2d1][%mdl 32]} Qc8 {[%emt 0:02:01]} 36. Kf1 {[%emt 0:04:10]} Qd7 {[%emt 0:00:32]} 37. Ke2 {[%emt 0:02:28]} Qc8 {[%emt 0:00:12]} 38. Kd1 {[%emt 0:01:23]} Qd7 {[%emt 0:00:07]} 39. Bf2 {[%emt 0:00:51]} Qc8 {[%emt 0:00:46]} 40. Ke2 {[%emt 0:00:32]} Qd7 {[%emt 0:00:53]} 41. Kf1 {[%emt 0:07:43] Weighted Error Value: White=0.15 (very precise) /Black=0.18 (very precise)} 1/2-1/2

[Event "Austrian Championship 2022"]
[Site "Vienna"]
[Date "2022.08.17"]
[Round "7.5"]
[White "Geroe, Leonhard"]
[Black "Hengl, Philip"]
[Result "1/2-1/2"]
[ECO "D79"]
[WhiteElo "2017"]
[BlackElo "1968"]
[Annotator "NA RC"]
[PlyCount "93"]
[EventDate "2022.08.12"]
[EventType "swiss"]
[EventCountry "AUT"]
[SourceTitle "playchess.com"]
[Source "ChessBase"]
[SourceQuality "1"]
[TimeControl "40/5400+30:1800+30"]

1. Nf3 {[%emt 0:00:02]} d5 {[%emt 0:01:24]} 2. g3 {[%emt 0:00:28]} g6 {[%emt 0:00:19]} 3. d4 {[%emt 0:01:51]} Bg7 {[%emt 0:01:25]} 4. Bg2 {[%emt 0:00:11]} Nf6 {[%emt 0:00:05]} 5. O-O {[%emt 0:03:02]} O-O {[%emt 0:00:44]} 6. c4 {[%emt 0:01:07]} c6 {[%emt 0:00:08]} 7. cxd5 {[%emt 0:03:57]} cxd5 {[%emt 0:00:12]} 8. Nc3 {[%emt 0:00:22]} Ne4 {[%emt 0:00:07]} 9. Qc2 {[%emt 0:08:22]} Nc6 {[%emt 0:09:16]} 10. Rd1 {[%emt 0:08:03]} Bf5 {[%emt 0:06:25]} 11. Qa4 {[%emt 0:32:10]} Nxc3 {[%emt 0:04:00]} 12. bxc3 {[%emt 0:00:10]} Be4 {[%emt 0:00:11]} 13. Be3 {[%emt 0:05:52]} Na5 {[%emt 0:05:42]} 14. Ne5 {[%emt 0:11:29]} Bxg2 {[%emt 0:00:23]} 15. Kxg2 {[%emt 0:00:08]} Bxe5 {[%emt 0:01:50]} 16. dxe5 {[%emt 0:00:06]} Nc4 {[%emt 0:00:17]} 17. Rab1 {[%emt 0:08:44]} Nxe3+ {[%emt 0:23:17]} 18. fxe3 {[%emt 0:00:03]} Qc7 {[%emt 0:00:39]} 19. Rxd5 {[%emt 0:04:34]} Rfd8 {[%emt 0:01:13]} 20. Qd4 {[%emt 0:02:54]} b6 {[%emt 0:04:27]} 21. e4 {[%emt 0:03:22]} Rac8 {[%emt 0:01:45]} 22. Rc1 {[%emt 0:01:12]} b5 {[%emt 0:05:09]} 23. Kf3 {[%emt 0:01:50]} a6 {[%emt 0:00:06]} 24. e3 {[%emt 0:00:59]} Qa5 {[%emt 0:02:39]} 25. c4 {[%emt 0:00:43]} Rxd5 {[%emt 0:01:53]} 26. Qxd5 {[%emt 0:00:58]} Rd8 {[%emt 0:01:37]} 27. Qc5 {[%emt 0:00:21]} Qd2 {[%emt 0:01:08]} 28. cxb5 {[%emt 0:00:47]} axb5 {[%emt 0:00:15]} 29. Qc2 {[%emt 0:00:21]} e6 {[%emt 0:03:00]} 30. h3 {[%emt 0:00:28]} Kg7 {[%emt 0:01:45]} 31. g4 {[%emt 0:00:28]} Rd3 {[%emt 0:01:25]} 32. Qxd2 {[%emt 0:00:47]} Rxd2 {[%emt 0:00:01]} 33. a3 {[%emt 0:00:16]} Ra2 {[%emt 0:00:59]} 34. Rc3 {[%emt 0:00:05]} Rb2 {[%emt 0:00:25]} 35. Kg3 {[%emt 0:01:01]} b4 {[%emt 0:00:51]} 36. axb4 {[%emt 0:00:10]} Rxb4 {[%emt 0:00:05]} 37. Kf3 {[%emt 0:00:13]} Rb2 {[%emt 0:00:07]} 38. h4 {[%emt 0:00:50]} h6 {[%emt 0:00:57]} 39. Rc1 {[%emt 0:00:55]} Rd2 {[%emt 0:01:26]} 40. Re1 {[%emt 0:00:22]} Ra2 {[%emt 0:00:06]} 41. Rg1 {[%emt 0:30:46]} Rb2 {[%emt 0:30:12]} 42. Re1 {[%emt 0:00:10]} Ra2 {[%emt 0:00:06]} 43. Rh1 {[%emt 0:00:00]} Rb2 {[%emt 0:00:00]} 44. Kg3 {[%emt 0:00:00]} Re2 {[%emt 0:00:00]} 45. Kf3 {[%emt 0:00:00]} Rb2 {[%emt 0:00:00]} 46. Re1 {[%emt 0:00:00]} Ra2 {[%emt 0:25:29]} 47. Re2 {[%emt 0:03:21]} 1/2-1/2